bitfinex-derivatives/quotes_SOLF0:USTF0_20240906
["timestamp","ask_amount","ask_price","bid_price","bid_amount"]
[1725646075952,0.3906922,126.5,126.43,1.2759]
[1725646076357,3.9568,126.45,126.43,1.2759]
[1725646078057,3.9568,126.45,126.42,3.9575]
[1725646078752,3.9568,126.45,126.41,34.5539664]
[1725646078954,3.9571,126.44,126.41,34.5539664]
[1725646079949,3.9571,126.44,126.41,30.5777]
[1725646080154,3.9573,126.43,126.41,34.59379708]
[1725646080656,3.9579,126.41,126.4,1.402]
[1725646081057,3.90564946,126.43,126.38,1.2768]
[1725646081256,3.9585,126.39,126.38,1.2768]
[1725646081456,3.9585,126.39,126.37,5.3154]
[1725646083055,3.9585,126.39,126.37,9.2745]
[1725646083261,3.9585,126.4,126.37,9.2745]
[1725646084353,7.9123,126.47,126.37,31.9354]
[1725646084552,0.39067108,126.46,126.38,1.3403]
[1725646084866,3.958,126.41,126.38,5.299]
[1725646085064,38.53691774,126.47,126.38,1.3403]
[1725646085267,26.62,126.45,126.38,1.3403]
[1725646085463,3.9584,126.4,126.38,1.3403]
[1725646086064,3.9575,126.43,126.4,3.9582]
[1725646086276,4.00461774,126.47,126.4,1.4022]
[1725646086564,7.91,126.51,126.4,1.4022]
[1725646086565,3.9569,126.45,126.41,30.5777]
[1725646086766,3.9569,126.45,126.42,3.86957278]
[1725646086966,3.9575,126.43,126.41,26.62]
[1725646087167,30.61550914,126.47,126.4,1.4022]
[1725646087369,26.62,126.45,126.38,1.3403]
[1725646087565,26.62,126.41,126.37,3.92]
[1725646087867,26.62,126.41,126.37,2.21202853]
[1725646088261,30.64600316,126.41,126.37,2.21202853]
[1725646089361,3.9588,126.38,126.37,2.21202853]
[1725646089767,30.64600316,126.41,126.37,2.21202853]
[1725646089966,39.70962334,126.47,126.31,1.3216]
[1725646089967,26.62,126.39,126.31,1.3216]
[1725646090166,30.55783238,126.39,126.32,3.90851947]
[1725646090566,3.9596,126.36,126.32,7.86911947]
[1725646091965,26.62,126.43,126.34,26.62]
[1725646092167,26.62,126.43,126.35,2.6864]
[1725646092369,3.9589,126.38,126.35,2.6864]
[1725646092667,3.9589,126.38,126.36,2.17]
[1725646093868,3.9592,126.37,126.36,2.17]
[1725646094665,8.01358788,126.38,126.36,2.17]
[1725646094979,11.87381512,126.45,126.36,2.17]
[1725646094980,26.62,126.43,126.36,2.17]
[1725646095472,3.9589,126.38,126.36,2.17]
[1725646095873,26.62,126.43,126.36,2.17]
[1725646096073,3.9587,126.39,126.36,2.17]
[1725646096273,26.62,126.43,126.36,2.17]
[1725646096464,26.62,126.41,126.36,2.17]
[1725646096973,3.9592,126.37,126.36,2.17]
[1725646097569,26.62,126.41,126.36,2.17]
[1725646097967,21.3,126.42,126.36,2.17]
[1725646098170,3.9588,126.39,126.36,2.17]
[1725646098970,3.96001512,126.45,126.36,23.47]
[1725646099171,21.3,126.45,126.36,23.47]
[1725646099469,3.98703174,126.44,126.38,21.3]
[1725646099661,3.9574,126.43,126.39,29.20542675]
[1725646099864,3.9574,126.43,126.39,25.2584]
[1725646100064,3.9578,126.42,126.39,21.3]
[1725646100264,3.9578,126.42,126.39,3.93316364]
[1725646100665,3.9578,126.42,126.39,7.89166364]
[1725646100861,3.9578,126.42,126.4,3.32]
[1725646104575,4.0028753,126.44,126.4,3.32]
[1725646104778,26.61,126.47,126.4,3.32]
[1725646105473,26.61,126.47,126.41,6.32]
[1725646105977,3.9576,126.42,126.41,6.32]
[1725646108572,26.61,126.5,126.41,32.93]
[1725646108774,0.3903773,126.49,126.41,35.5841]
[1725646109477,0.3903773,126.49,126.43,26.61]
[1725646109676,299.90648709,126.52,126.43,26.61]
[1725646109873,0.39027098,126.51,126.43,26.61]
[1725646110077,3.9554,126.49,126.45,3.9566]
[1725646110474,3.9554,126.49,126.45,26.61]
[1725646110673,3.9554,126.49,126.46,2.6851]
[1725646112073,3.9552,126.5,126.46,6.6413]
[1725646112273,3.9552,126.5,126.46,2.6851]
[1725646112475,3.9552,126.5,126.46,6.54945345]
[1725646112670,26.61,126.48,126.44,8.1]
[1725646112975,26.61,126.5,126.44,8.1]
[1725646113170,3.9559,126.48,126.44,8.1]
[1725646113481,299.90648709,126.52,126.44,8.1]
[1725646113779,3.9559,126.48,126.44,12.0568]
[1725646113980,3.9559,126.48,126.44,38.6668]
[1725646114177,3.9559,126.48,126.45,2.6928]
[1725646114370,273.29648709,126.52,126.45,2.6928]
[1725646114371,3.9552,126.5,126.45,2.6928]
[1725646114575,273.29648709,126.52,126.46,3.31]
[1725646114773,0.38988368,126.51,126.46,3.31]
[1725646114969,0.38987277,126.51,126.46,7.33773164]
[1725646115380,273.29648709,126.52,126.46,7.33773164]
[1725646115381,3.9552,126.5,126.46,7.33773164]
[1725646115577,273.29648709,126.52,126.46,7.33773164]
[1725646115782,0.38990728,126.51,126.46,7.33773164]
[1725646116776,3.9556,126.49,126.46,7.33773164]
[1725646117384,3.9558,126.48,126.46,3.31]
[1725646117884,3.9556,126.49,126.46,7.34105189]
[1725646118781,3.9556,126.49,126.46,3.31]
[1725646118983,3.9557,126.48,126.46,3.31]
[1725646119484,273.29648709,126.52,126.46,3.31]
[1725646119783,0.39010601,126.51,126.47,6.32]
[1725646120281,3.9556,126.49,126.47,6.32]
[1725646121382,3.9556,126.49,126.48,2.12]
[1725646124786,3.9553,126.5,126.48,8.44]
[1725646124989,273.29648709,126.52,126.48,8.44]
[1725646125581,3.9548,126.51,126.48,8.44]
[1725646126078,273.29648709,126.52,126.48,8.44]
[1725646126285,3.9554,126.49,126.48,8.44]
[1725646131997,273.29648709,126.52,126.48,8.44]
[1725646132185,269.3234,126.52,126.48,29.7]
[1725646132390,269.3234,126.52,126.48,33.6555]
[1725646132591,273.278,126.52,126.48,33.6555]
[1725646132795,273.278,126.52,126.48,29.7]
[1725646132991,267.1962,126.52,126.51,21.26]
[1725646133288,60.1636,126.52,126.51,21.26]
[1725646133491,55.9115,126.52,126.51,25.2148]
[1725646135194,55.9115,126.52,126.51,27.3248]
[1725646135996,3.9534,126.56,126.52,3.9542]
[1725646136196,1.415,126.59,126.53,21.26]
[1725646136695,3.9526,126.58,126.55,3.9535]
[1725646136891,1.3631,126.6,126.55,21.26]
[1725646137293,3.9528,126.58,126.55,21.26]
[1725646139202,3.9529,126.57,126.55,21.26]
[1725646139499,3.9529,126.57,126.56,3.3]
[1725646139690,3.9529,126.57,126.56,5.07]
[1725646140200,3.9527,126.58,126.56,5.07]
[1725646140597,1.3631,126.6,126.56,5.07]
[1725646140791,21.26,126.57,126.51,2.11]
[1725646140992,21.26,126.56,126.51,2.11]
[1725646141396,22.602,126.59,126.51,2.11]
[1725646141397,21.26,126.54,126.52,6.32]
[1725646141592,25.12533425,126.54,126.51,2.11]
[1725646141793,3.9545,126.52,126.51,2.11]
[1725646143698,25.12533425,126.54,126.51,2.11]
[1725646144300,3.9545,126.52,126.51,2.11]
[1725646145793,3.86533425,126.54,126.51,2.11]
[1725646145998,21.26,126.58,126.51,2.11]
[1725646146195,0.39006043,126.57,126.51,2.11]
[1725646146396,21.26,126.58,126.51,2.11]
[1725646146798,3.9538,126.55,126.51,2.11]
[1725646148202,3.9538,126.55,126.51,6.0647]
[1725646148594,3.9541,126.54,126.51,2.11]
[1725646149205,3.9538,126.55,126.51,2.11]
[1725646149601,3.93364138,126.54,126.51,2.11]
[1725646149801,21.26,126.54,126.51,2.11]
[1725646150013,3.89367732,126.53,126.51,2.11]
[1725646150509,3.9545,126.52,126.51,2.11]
[1725646151294,3.9543,126.53,126.51,2.11]
[1725646152807,3.9537,126.55,126.51,2.11]
[1725646153103,3.9537,126.55,126.52,6.32]
[1725646153495,3.9533,126.56,126.53,6.32]
[1725646155405,7.9001,126.67,126.54,21.26]
[1725646155598,0.38920541,126.6,126.54,21.26]
[1725646155797,0.38920541,126.6,126.53,11.6725]
[1725646155798,3.9531,126.57,126.53,11.6725]
[1725646156007,25.16967666,126.6,126.53,6.32]
[1725646156206,21.26,126.58,126.53,6.32]
[1725646156394,3.9536,126.55,126.53,6.32]
[1725646156905,3.9531,126.57,126.53,10.2741]
[1725646157503,3.9533,126.56,126.53,6.32]
[1725646158104,4.0403,126.59,126.54,3.91165931]
[1725646158401,4.0403,126.59,126.53,6.32]
[1725646158602,3.9522,126.6,126.55,3.9533]
[1725646158806,3.9522,126.6,126.55,7.87801268]
[1725646159201,3.9522,126.6,126.55,3.92471268]
[1725646159404,3.9523,126.59,126.54,21.26]
[1725646159608,4.04021521,126.61,126.54,25.1443659]
[1725646159803,21.26,126.62,126.54,25.1443659]
[1725646160006,3.9526,126.59,126.54,25.1443659]
[1725646160207,3.94640689,126.59,126.54,3.8843659]
[1725646160402,21.26,126.61,126.53,6.32]
[1725646160610,21.26,126.62,126.54,21.26]
[1725646160809,21.26,126.62,126.55,3.91754038]
[1725646161508,0.38915119,126.61,126.54,21.26]
[1725646161701,7.93207895,126.63,126.56,21.26]
[1725646161902,3.9522,126.6,126.56,25.2132]
[1725646162304,21.26,126.62,126.54,27.76811093]
[1725646163113,21.26,126.6,126.53,7.6509]
[1725646163404,21.26,126.6,126.53,6.32]
[1725646163706,21.26,126.59,126.53,6.32]
[1725646164405,3.9534,126.56,126.53,6.32]
[1725646164808,3.9534,126.56,126.54,2.08]
[1725646165008,1.3816,126.58,126.54,2.08]
[1725646165209,2.7849,126.58,126.54,2.08]
[1725646165710,3.9535,126.55,126.54,2.08]
[1725646166010,7.9057548,126.55,126.54,2.08]
[1725646168114,3.9538,126.54,126.53,6.32]
[1725646168914,4.34281403,126.54,126.53,6.32]
[1725646169120,3.9538,126.54,126.53,6.32]
[1725646169616,4.34276731,126.54,126.53,6.32]
[1725646170316,3.9538,126.54,126.53,6.32]
[1725646170608,4.34273326,126.54,126.53,6.32]
[1725646171312,3.9538,126.54,126.53,6.32]
[1725646171512,4.34272119,126.54,126.53,6.32]
[1725646174018,4.34272119,126.54,126.53,12.64]
[1725646175211,4.34271825,126.54,126.53,12.64]
[1725646176913,3.9538,126.54,126.53,12.64]
[1725646177820,3.956,126.47,126.37,7.921]
[1725646178123,21.26,126.5,126.43,21.26]
[1725646178312,21.26,126.48,126.41,25.3326]
[1725646178515,21.26,126.47,126.37,3.90515143]
[1725646178721,23.9812,126.47,126.42,6.32]
[1725646179028,3.9575,126.43,126.42,6.32]
[1725646185131,7.88981444,126.43,126.42,6.32]
[1725646185333,3.9575,126.43,126.42,6.32]
[1725646185534,8.00907478,126.43,126.42,6.32]
[1725646186121,3.9575,126.43,126.42,6.32]
[1725646186730,3.93200324,126.44,126.42,6.32]
[1725646187731,3.9573,126.43,126.42,6.32]
[1725646190137,3.9576,126.42,126.41,7.12]
[1725646190339,25.2176,126.42,126.41,7.12]
[1725646192336,3.9579,126.41,126.4,1.01]
[1725646192540,21.26,126.42,126.34,1.3552]
[1725646192746,21.26,126.39,126.34,1.3552]
[1725646193048,3.9593,126.37,126.34,1.3552]
[1725646195946,3.9595,126.36,126.34,1.3552]
[1725646196348,21.26,126.39,126.34,1.3552]
[1725646196538,3.9597,126.36,126.34,1.3552]
[1725646196743,22.676,126.41,126.34,5.3151]
[1725646197141,3.9593,126.37,126.34,5.3151]
[1725646198746,3.9595,126.36,126.34,5.3151]
[1725646199138,21.26,126.39,126.34,1.54]
[1725646199338,21.26,126.35,126.28,4.0673]
[1725646199541,21.26,126.35,126.28,7.93550505]
[1725646199948,3.9611,126.31,126.28,11.89720505]
[1725646200443,3.9603,126.34,126.31,3.961]
[1725646200645,3.86503633,126.36,126.3,21.26]
[1725646200844,21.26,126.36,126.29,21.26]
[1725646201042,21.26,126.35,126.28,4.0673]
[1725646201649,25.230396,126.36,126.28,4.0673]
[1725646202055,25.230396,126.36,126.29,3.9615]
[1725646202349,25.230396,126.36,126.28,4.0673]
[1725646202549,3.9609,126.32,126.28,8.0291]
[1725646204652,3.9609,126.32,126.29,3.9616]
[1725646205147,3.9609,126.32,126.28,4.0673]
[1725646205148,3.9609,126.32,126.28,8.0292]
[1725646205448,25.230396,126.36,126.28,4.0673]
[1725646205645,21.26,126.34,126.28,1.3098]
[1725646206244,3.9615,126.3,126.28,1.3098]
[1725646207050,3.9612,126.31,126.28,1.3098]
[1725646207247,25.230396,126.36,126.28,1.3098]
[1725646207444,25.230396,126.36,126.28,2.7008]
[1725646207650,3.961,126.32,126.28,6.6626]
[1725646208248,3.9611,126.31,126.28,6.6626]
[1725646208653,21.26,126.34,126.28,2.7008]
[1725646208849,21.26,126.34,126.0,3.6624961]
[1725646208850,21.26,126.31,126.22,21.26]
[1725646209051,21.26,126.31,126.23,1.391]
[1725646209948,21.26,126.31,126.24,3.963]
[1725646210257,21.26,126.29,126.22,2.6587]
[1725646211056,25.24020847,126.29,126.22,2.6587]
[1725646211556,3.963,126.25,126.22,2.6587]
[1725646211955,3.963,126.25,126.22,6.6224]
[1725646212355,3.9625,126.27,126.22,2.6587]
[1725646212559,3.9625,126.27,126.24,3.9632]
[1725646212952,21.26,126.31,126.24,3.9632]
[1725646213547,3.9625,126.27,126.24,3.9632]
[1725646214354,3.9618,126.29,126.26,25.2224]
[1725646214654,21.26,126.32,126.24,21.26]
[1725646214854,21.26,126.31,126.23,5.3464]
[1725646215052,21.26,126.31,126.23,1.383]
[1725646215355,1.3256,126.33,126.23,5.3464]
[1725646215550,21.26,126.3,126.23,5.3464]
[1725646215748,3.87016086,126.29,126.23,5.3464]
[1725646215953,3.9628,126.26,126.23,5.3464]
[1725646216154,3.87016086,126.29,126.24,3.963]
[1725646216351,21.26,126.32,126.24,3.963]
[1725646216557,3.9625,126.27,126.24,3.963]
[1725646216757,3.9625,126.27,126.24,3.9632]
[1725646217152,3.9625,126.27,126.24,25.2232]
[1725646218961,3.9625,126.27,126.25,3.9629]
[1725646220055,22.5856,126.33,126.26,3.9625]
[1725646220253,22.5856,126.33,126.26,25.2225]
[1725646220657,3.9619,126.29,126.26,25.2225]
[1725646222266,3.9619,126.29,126.26,25.27096094]
[1725646222463,3.9615,126.3,126.26,25.27096094]
[1725646222967,3.9615,126.3,126.27,3.9621]
[1725646223157,22.5856,126.33,126.26,25.27096094]
[1725646223464,22.5856,126.33,126.26,21.26]
[1725646223659,22.5856,126.33,126.25,1.3232]
[1725646224261,22.5856,126.33,126.26,3.9625]
[1725646225460,3.9619,126.29,126.26,3.9625]
[1725646226371,3.9621,126.28,126.25,1.3232]
[1725646227065,3.9621,126.28,126.26,3.9624]
[1725646227262,3.9618,126.29,126.25,1.3232]
[1725646227462,21.26,126.33,126.26,3.97378651]
[1725646228064,3.9618,126.29,126.25,1.3232]
[1725646228365,3.9618,126.29,126.26,3.9570587]
[1725646228568,3.9618,126.29,126.27,3.9623]
[1725646230364,21.26,126.33,126.25,1.3232]
[1725646230568,21.26,126.33,126.26,3.9624]
[1725646231170,3.9618,126.29,126.27,3.9623]
[1725646233861,3.9626,126.26,126.23,1.383]
[1725646234060,3.90672352,126.29,126.23,1.383]
[1725646234265,21.26,126.31,126.23,22.643]
[1725646235667,21.26,126.3,126.23,1.383]
[1725646235870,3.9625,126.27,126.24,3.9631]
[1725646236260,3.9625,126.27,126.23,1.383]
[1725646236881,3.9621,126.28,126.23,22.643]
[1725646237371,3.9621,126.28,126.26,3.9625]
[1725646238076,21.26,126.31,126.23,22.643]
[1725646238965,3.9621,126.28,126.25,3.9627]
[1725646240271,3.9629,126.26,126.23,22.643]
[1725646240465,3.9629,126.26,126.23,1.383]
[1725646240873,3.9624,126.27,126.23,1.383]
[1725646241075,3.9624,126.27,126.24,21.26]
[1725646241969,3.9626,126.26,126.23,1.383]
[1725646242370,25.28554809,126.29,126.23,1.383]
[1725646242571,21.26,126.29,126.23,1.383]
[1725646242879,4.0100896,126.28,126.23,1.383]
[1725646243268,3.9629,126.25,126.23,5.3464]
[1725646243479,3.9629,126.25,126.22,21.26]
[1725646244282,3.9628,126.26,126.22,21.26]
[1725646244573,3.9628,126.26,126.23,3.9634]
[1725646244767,3.92438792,126.28,126.23,3.9634]
[1725646244970,21.26,126.28,126.18,1.4006]
[1725646245178,21.26,126.24,126.17,4.05757927]
[1725646245470,3.9641,126.22,126.19,3.9647]
[1725646245669,21.26,126.24,126.18,21.26]
[1725646245872,21.26,126.24,126.17,3.92874835]
[1725646246771,3.9644,126.21,126.18,3.965]
[1725646246968,4.02666946,126.22,126.18,3.965]
[1725646247173,3.9647,126.2,126.17,7.89394835]
[1725646247467,3.9647,126.2,126.17,3.92874835]
[1725646248273,21.26,126.19,126.06,7.931]
[1725646248474,21.26,126.16,126.07,4.0632]
[1725646248681,21.26,126.16,126.07,29.20433197]
[1725646248682,25.29737658,126.16,126.07,29.20433197]
[1725646248883,3.9669,126.13,126.1,3.9676]
[1725646249380,3.9669,126.13,126.07,29.20433197]
[1725646249876,3.9665,126.14,126.11,3.9672]
[1725646250271,3.9656,126.17,126.12,21.26]
[1725646250573,3.91788731,126.2,126.13,21.26]
[1725646250781,3.9654,126.18,126.13,21.26]
[1725646250981,3.9654,126.18,126.14,3.9662]
[1725646251185,3.91788731,126.2,126.13,21.26]
[1725646251479,25.22113723,126.25,126.14,22.6647]
[1725646251685,25.22113723,126.25,126.19,21.26]
[1725646251686,3.96113723,126.25,126.19,21.26]
[1725646251879,3.9638,126.23,126.19,29.22273854]
[1725646252082,3.96113723,126.25,126.19,29.22273854]
[1725646252272,22.5497,126.27,126.19,25.25803854]
[1725646252583,22.5497,126.27,126.19,29.22263854]
[1725646253186,21.26,126.25,126.18,3.965]
[1725646253380,25.16056341,126.25,126.19,3.92356388]
[1725646253578,25.16056341,126.25,126.17,21.26]
[1725646253885,3.90056341,126.25,126.18,1.389]
[1725646254083,21.26,126.25,126.18,5.4370837]
[1725646254385,3.9644,126.21,126.18,9.4019837]
[1725646254981,3.964,126.22,126.19,25.2248]
[1725646255675,3.9637,126.23,126.2,3.9644]
[1725646256079,22.5497,126.27,126.2,3.9644]
[1725646256889,3.964,126.22,126.19,25.2246]
[1725646258286,3.99732403,126.25,126.19,3.9646]
[1725646258586,3.9642,126.22,126.19,3.9646]
[1725646258976,3.91682236,126.25,126.19,3.9646]
[1725646259181,3.9641,126.22,126.19,3.9646]
[1725646259988,3.9637,126.23,126.19,21.26]
[1725646260181,22.5497,126.27,126.2,1.3751]
[1725646260382,22.5497,126.27,126.22,3.9636]
[1725646260383,1.2897,126.27,126.22,3.9636]
[1725646260585,3.97590979,126.26,126.2,1.3751]
[1725646260787,22.5497,126.27,126.2,1.3751]
[1725646260992,4.04094562,126.26,126.2,5.3394]
[1725646261292,3.9637,126.23,126.2,5.3394]
[1725646261493,22.5497,126.27,126.18,8.0129837]
[1725646261691,21.26,126.25,126.18,3.9649]
[1725646261899,3.9643,126.21,126.18,7.92534396]
[1725646262090,21.26,126.25,126.18,3.96044396]
[1725646262287,1.2897,126.27,126.21,21.26]
[1725646262495,1.2897,126.27,126.21,3.95647836]
[1725646262695,1.2897,126.27,126.21,7.92057836]
[1725646263101,3.9634,126.24,126.21,7.92057836]
[1725646263399,3.9634,126.24,126.2,21.26]
[1725646263796,3.9631,126.25,126.22,3.9638]
[1725646264999,3.9633,126.24,126.22,3.9638]
[1725646265199,1.3175,126.31,126.23,21.26]
[1725646265399,3.9618,126.29,126.23,21.26]
[1725646265702,1.3175,126.31,126.25,3.9627]
[1725646265900,3.962,126.28,126.25,3.9627]
[1725646269000,3.962,126.28,126.23,21.26]
[1725646269001,21.26,126.3,126.22,2.7174]
[1725646269404,3.9628,126.26,126.23,3.9634]
[1725646269899,3.9625,126.27,126.24,3.963]
[1725646270711,3.9625,126.27,126.25,3.9629]
[1725646271012,3.9622,126.28,126.25,3.9629]
[1725646271716,3.88892176,126.33,126.26,21.26]
[1725646272011,21.26,126.35,126.27,22.5715]
[1725646272214,5.45903395,126.36,126.29,21.26]
[1725646272407,1.4185,126.36,126.29,21.26]
[1725646272708,3.9603,126.34,126.31,3.9608]
[1725646273108,25.20352253,126.37,126.29,21.26]
[1725646273307,21.26,126.33,126.27,1.3115]
[1725646273508,2.5235,126.38,126.27,22.5715]
[1725646273704,2.5235,126.38,126.31,3.9609]
[1725646273907,21.26,126.37,126.28,22.6535]
[1725646274320,1.4023,126.38,126.3,21.26]
[1725646274617,3.92133452,126.38,126.32,21.26]
[1725646275019,3.9597,126.36,126.33,3.9602]
[1725646275314,25.14607143,126.41,126.33,21.26]
[1725646275521,3.9597,126.36,126.33,3.9604]
[1725646275819,21.26,126.39,126.31,21.26]
[1725646276220,25.30835839,126.39,126.31,21.26]
[1725646277716,3.96,126.35,126.32,3.9605]
[1725646278114,25.30835839,126.39,126.31,21.26]
[1725646278316,3.9602,126.34,126.31,25.2209]
[1725646278518,21.26,126.38,126.3,21.26]
[1725646278712,3.9611,126.31,126.29,1.3763]
[1725646278923,21.26,126.35,126.29,1.3763]
[1725646279324,21.26,126.35,126.29,5.3378]
[1725646279822,3.9609,126.32,126.29,5.3378]
[1725646280228,21.26,126.35,126.29,5.3378]
[1725646280827,3.9609,126.32,126.29,5.3378]
[1725646281423,3.9609,126.32,126.3,3.9613]
[1725646281624,3.9606,126.33,126.29,1.3763]
[1725646281919,22.5803,126.38,126.31,21.26]
[1725646282429,3.9603,126.34,126.32,3.9607]
[1725646282636,4.04835839,126.39,126.33,21.26]
[1725646282929,3.9593,126.37,126.34,29.12538594]
[1725646283228,3.9482771,126.4,126.34,21.26]
[1725646283423,3.9482771,126.4,126.35,3.9596]
[1725646283620,3.9482771,126.4,126.35,4.01365249]
[1725646284031,3.9589,126.38,126.35,7.97335249]
[1725646284623,3.9592,126.37,126.34,25.22]
[1725646284934,3.9592,126.37,126.35,3.95857868]
[1725646285124,3.9595,126.36,126.33,3.9603]
[1725646285429,21.26,126.4,126.31,21.26]
[1725646285629,25.24267476,126.4,126.31,21.26]
[1725646286031,3.9598,126.35,126.32,3.9606]
[1725646286328,21.26,126.38,126.31,21.26]
[1725646287030,25.15474301,126.38,126.31,21.26]
[1725646287330,3.96,126.35,126.32,3.9607]
[1725646289633,3.9602,126.34,126.32,3.9607]
[1725646290427,3.9602,126.34,126.31,3.9609]
[1725646292234,3.89474301,126.38,126.3,26.64]
[1725646292530,3.89474301,126.38,126.32,26.64]
[1725646292733,27.966,126.41,126.32,26.64]
[1725646293033,31.99644754,126.41,126.32,26.64]
[1725646293236,3.9597,126.36,126.33,3.9602]
[1725646293437,31.99644754,126.41,126.34,3.93418267]
[1725646293631,5.35644754,126.41,126.34,26.64]
[1725646293829,3.959,126.38,126.35,7.92270174]
[1725646294631,3.9592,126.37,126.35,7.92270174]
[1725646295029,26.64,126.43,126.35,3.96310174]
[1725646295230,1.2797,126.44,126.36,26.64]
[1725646295430,0.38803172,126.43,126.36,26.64]
[1725646295629,1.2797,126.44,126.36,26.64]
[1725646296630,3.9584,126.4,126.36,30.5993]
[1725646297133,1.2797,126.44,126.36,30.5993]
[1725646298237,3.9584,126.4,126.36,30.5993]
[1725646299441,3.91629921,126.41,126.35,9.1456246]
[1725646299635,26.64,126.43,126.35,9.1456246]
[1725646299834,3.9585,126.4,126.36,3.9592]
[1725646300036,1.2797,126.44,126.37,26.64]
[1725646300443,3.9582,126.41,126.37,30.5991]
[1725646301341,3.9582,126.4,126.37,30.5991]
[1725646302846,3.9582,126.4,126.38,3.9588]
[1725646305943,3.9582,126.4,126.37,30.599]
[1725646307541,1.2797,126.44,126.35,31.8261246]
[1725646307743,26.64,126.43,126.35,5.1861246]
[1725646307949,3.9589,126.38,126.35,5.1861246]
[1725646308248,4.00509276,126.41,126.35,5.1861246]
[1725646308443,3.9592,126.37,126.35,5.1861246]
[1725646308843,3.9592,126.37,126.34,5.2845]
[1725646309248,30.55955785,126.41,126.34,1.3245]
[1725646309443,26.64,126.41,126.33,1.3625]
[1725646309845,3.9598,126.35,126.33,5.3228]
[1725646311054,3.9593,126.37,126.35,3.9597]
[1725646311452,3.9593,126.37,126.34,3.94529753]
[1725646311755,25.33093256,126.41,126.33,1.3625]
[1725646312749,3.9597,126.36,126.33,5.3227]
[1725646314060,21.31,126.39,126.33,1.3625]
[1725646314253,21.31,126.37,126.3,1.4014]
[1725646314559,21.31,126.37,126.28,1.4011]
[1725646314760,3.9609,126.32,126.29,5.3749]
[1725646315256,3.99986795,126.34,126.28,1.4011]
[1725646315457,21.31,126.34,126.28,1.4011]
[1725646315853,3.9613,126.31,126.28,5.3631]
[1725646316060,21.31,126.35,126.28,5.3631]
[1725646316255,21.31,126.34,126.28,1.4011]
[1725646316550,3.87822758,126.33,126.28,1.4011]
[1725646316757,21.31,126.34,126.28,1.4011]
[1725646317258,3.88932182,126.33,126.28,1.4011]
[1725646317957,3.9614,126.3,126.27,3.9623]
[1725646318362,3.9611,126.31,126.28,3.9618]
[1725646318667,3.98853029,126.34,126.27,25.2636579]
[1725646318858,21.31,126.36,126.29,25.2715]
[1725646319257,21.31,126.36,126.29,3.9615]
[1725646319461,3.961,126.31,126.28,25.2719]
[1725646319957,21.31,126.36,126.29,4.01032554]
[1725646320160,21.31,126.36,126.29,7.97182554]
[1725646321056,21.31,126.37,126.29,25.32032554]
[1725646321255,21.31,126.36,126.2,11.86246265]
[1725646321458,21.31,126.33,126.24,25.2731]
[1725646321762,21.31,126.31,126.24,21.31]
[1725646322060,21.31,126.29,126.21,2.763]
[1725646322752,3.9624,126.27,126.22,3.9637]
[1725646322952,21.31,126.29,126.22,21.31]
[1725646323259,1.3619,126.3,126.22,21.31]
[1725646323460,3.9625,126.27,126.23,3.9633]
[1725646324357,3.9627,126.26,126.23,3.9633]